bitfinex/quotes_SOLUSD_20251002
["timestamp","ask_amount","ask_price","bid_price","bid_amount"]
[1759376003278,0.90216157,225.09,225.08,79.2]
[1759376004082,0.90216157,225.09,225.08,111.68]
[1759376005444,0.90216157,225.09,225.08,79.2]
[1759376005647,0.90216157,225.09,225.08,111.7]
[1759376006376,0.14216157,225.08,225.06,13.13531019]
[1759376006576,0.14216157,225.08,225.07,32.48]
[1759376006949,0.14216157,225.08,225.06,32.48]
[1759376007151,0.80216157,225.07,225.06,32.48]
[1759376007349,0.14216157,225.07,225.06,32.48]
[1759376007651,0.14216157,225.07,224.97,4.44228433]
[1759376007652,0.14216157,225.06,224.97,4.44499791]
[1759376007880,0.14216157,225.04,224.98,32.46]
[1759376008177,0.14216157,225.02,224.99,32.46]
[1759376008378,0.14216157,225.02,224.95,24.34601893]
[1759376008379,0.14216157,225.0,224.95,13.05754033]
[1759376008684,0.14216157,225.0,224.96,32.46]
[1759376008685,0.66,224.99,224.96,32.46]
[1759376009176,0.14216157,224.97,224.93,4.44565739]
[1759376009380,0.14216157,224.97,224.94,32.46]
[1759376009583,0.14216157,224.97,224.94,45.7675456]
[1759376010086,0.14216157,224.97,224.94,13.3075456]
[1759376010259,0.14216157,224.95,224.94,32.44]
[1759376010874,0.14216157,224.95,224.94,32.46]
[1759376011581,0.80216157,224.95,224.94,32.46]
[1759376011885,0.80216157,224.95,224.93,32.46]
[1759376012058,0.80216157,224.94,224.93,32.46]
[1759376014077,0.14216157,224.93,224.91,45.55589061]
[1759376014279,0.66,224.92,224.91,124.75589061]
[1759376014480,0.66,224.92,224.91,92.31589061]
[1759376014862,0.66,224.92,224.91,79.2]
[1759376015393,0.80216157,224.92,224.91,79.2]
[1759376016457,0.80216157,224.92,224.88,32.42]
[1759376016659,0.80216157,224.91,224.87,32.42]
[1759376016875,0.14216157,224.89,224.85,79.2]
[1759376017075,0.14216157,224.87,224.85,111.6]
[1759376017284,0.14216157,224.87,224.84,79.2]
[1759376017490,0.14216157,224.85,224.84,79.2]
[1759376017681,0.80216157,224.85,224.84,79.2]
[1759376017880,0.14216157,224.85,224.84,79.2]
[1759376018076,0.80216157,224.85,224.84,79.2]
[1759376019357,0.28432314,224.84,224.78,79.2]
[1759376019594,4.59027132,224.82,224.78,79.2]
[1759376019760,0.14216157,224.8,224.76,92.70108301]
[1759376019964,0.66,224.79,224.76,79.2]
[1759376020267,0.14216157,224.77,224.74,116.04956843]
[1759376020663,0.80216157,224.77,224.74,116.04956843]
[1759376020864,0.80216157,224.77,224.74,79.2]
[1759376021687,0.14216157,224.77,224.74,92.81042026]
[1759376021873,0.14216157,224.75,224.74,97.25998051]
[1759376022189,0.14216157,224.75,224.74,79.2]
[1759376023059,10.6965196,225.0,224.75,4.4493882]
[1759376023060,5.93851223,224.85,224.75,4.4493882]
[1759376023258,0.14216157,224.81,224.75,83.6493882]
[1759376023479,0.14216157,224.81,224.76,32.38]
[1759376023687,0.14216157,224.81,224.76,116.02913277]
[1759376023883,0.14216157,224.79,224.76,116.02913277]
[1759376024080,0.14216157,224.79,224.76,36.82913277]
[1759376024283,0.14216157,224.79,224.78,4.9]
[1759376024481,0.14216157,224.79,224.7,11.12566073]
[1759376024482,0.14216157,224.79,224.73,32.38]
[1759376024684,0.14216157,224.79,224.72,32.38]
[1759376024885,0.14216157,224.77,224.72,32.38]
[1759376025065,0.66,224.76,224.72,32.38]
[1759376025681,0.66,224.76,224.69,24.38889492]
[1759376025682,0.14216157,224.74,224.69,57.63049953]
[1759376026292,0.14216157,224.74,224.69,81.97380336]
[1759376027770,0.14216157,224.77,224.69,81.97380336]
[1759376028065,0.14216157,224.75,224.7,32.36]
[1759376028269,0.66,224.74,224.7,32.36]
[1759376029583,0.14216157,224.77,224.7,32.36]
[1759376029880,0.14216157,224.77,224.71,15.57563081]
[1759376030079,0.14216157,224.77,224.7,111.56]
[1759376030080,0.14216157,224.75,224.7,79.2]
[1759376030270,0.14216157,224.73,224.7,79.2]
[1759376030480,2.33311302,224.77,224.64,32.34]
[1759376030481,0.28432314,224.7,224.64,32.34]
[1759376030683,0.14216157,224.68,224.61,3.58976914]
[1759376030873,0.14216157,224.68,224.62,32.38]
[1759376031599,0.14216157,224.68,224.63,4.45176512]
[1759376031895,0.14216157,224.66,224.63,4.45176512]
[1759376032102,0.14216157,224.64,224.62,32.38]
[1759376032707,0.14216157,224.64,224.62,45.75859709]
[1759376032870,0.14216157,224.71,224.62,45.75859709]
[1759376033070,0.14216157,224.69,224.62,45.75859709]
[1759376033702,0.14216157,224.69,224.66,20.8]
[1759376033897,0.14216157,224.69,224.67,32.4]
[1759376034080,0.66,224.74,224.67,32.4]
[1759376034277,0.14216157,224.73,224.67,32.4]
[1759376035682,0.14216157,224.73,224.68,4.45077443]
[1759376035886,0.14216157,224.73,224.69,32.4]
[1759376036307,0.72,224.75,224.69,32.4]
[1759376036613,43.49976296,224.83,224.69,32.4]
[1759376036614,0.72,224.87,224.73,20.8]
[1759376036911,0.72,224.87,224.74,32.38]
[1759376037089,0.72,224.87,224.77,20.8]
[1759376037281,0.14216157,224.86,224.78,32.44]
[1759376037481,0.72,224.87,224.79,32.44]
[1759376037700,0.72,224.87,224.8,32.44]
[1759376037908,0.72,224.87,224.81,4.4482007]
[1759376038285,0.14216157,224.86,224.81,4.4482007]
[1759376038598,0.72,224.87,224.81,4.4482007]
[1759376038799,0.72,224.87,224.81,15.56870245]
[1759376039201,0.72,224.9,224.81,15.56870245]
[1759376039507,0.14216157,224.89,224.82,32.44]
[1759376039807,0.72,224.9,224.83,4.447805]
[1759376040009,0.14216157,224.89,224.83,4.447805]
[1759376040593,0.14216157,224.89,224.77,15.57103294]
[1759376040594,0.14216157,224.87,224.77,15.57103294]
[1759376040916,0.28432314,224.84,224.78,32.4]
[1759376041210,0.14216157,224.82,224.78,32.4]
[1759376041400,0.86216157,224.82,224.78,32.4]
[1759376041584,0.14216157,224.8,224.75,4.44920118]
[1759376041789,0.14216157,224.78,224.75,32.38]
[1759376042004,0.14216157,224.78,224.75,36.82934108]
[1759376042717,0.86216157,224.78,224.75,32.38]
[1759376042886,0.14216157,224.78,224.75,32.38]
[1759376043222,0.28432314,224.8,224.69,32.38]
[1759376043223,0.14216157,224.76,224.69,32.38]
[1759376043387,0.14216157,224.76,224.7,32.38]
[1759376043910,0.14216157,224.76,224.71,4.45018023]
[1759376044396,1.00432314,224.76,224.71,4.45018023]
[1759376046487,0.86216157,224.76,224.71,4.45018023]
[1759376046685,0.14216157,224.74,224.69,83.65047934]
[1759376046890,0.72,224.73,224.71,32.38]
[1759376047092,0.14216157,224.72,224.71,32.38]
[1759376047386,0.14216157,224.72,224.69,83.65047934]
[1759376047798,0.14216157,224.72,224.7,32.36]
[1759376048001,0.14216157,224.72,224.71,32.36]
[1759376049408,0.14216157,224.74,224.71,32.36]
[1759376049600,0.72,224.73,224.7,4.45031555]
[1759376049811,0.14216157,224.72,224.69,79.2]
[1759376050312,0.14216157,224.72,224.7,32.32]
[1759376050313,0.86216157,224.72,224.7,32.32]
[1759376050703,0.14216157,224.72,224.7,32.32]
[1759376051513,0.14216157,224.72,224.7,36.77022804]
[1759376052100,0.14216157,224.75,224.7,36.77022804]
[1759376052306,0.14216157,224.73,224.7,36.77022804]
[1759376052996,0.72,224.79,224.7,47.89617374]
[1759376053199,0.72,224.79,224.7,127.09617374]
[1759376053390,0.14216157,224.78,224.7,127.09617374]
[1759376053598,0.14216157,224.78,224.71,32.3]
[1759376053812,0.14216157,224.78,224.7,94.77617374]
[1759376054124,1.14648471,224.78,224.72,32.3]
[1759376054298,0.14216157,224.76,224.73,32.3]
[1759376054492,0.14216157,224.74,224.73,32.3]
[1759376054702,0.86216157,224.74,224.73,32.3]
[1759376054888,0.86216157,224.74,224.7,83.65022804]
[1759376055087,0.86216157,224.74,224.71,32.3]
[1759376055519,0.86216157,224.74,224.72,32.3]
[1759376055730,0.14216157,224.74,224.72,32.3]
[1759376055895,0.86216157,224.74,224.72,32.3]
[1759376056295,0.86216157,224.74,224.7,83.65022804]
[1759376056495,0.86216157,224.74,224.72,32.3]
[1759376057009,0.14216157,224.75,224.72,32.3]
[1759376057393,0.14216157,224.75,224.73,4.44978418]
[1759376057913,0.86216157,224.75,224.72,32.3]
[1759376058503,0.14216157,224.75,224.69,4.45045931]
[1759376058794,0.14216157,224.73,224.7,32.26]
[1759376059305,0.14216157,224.73,224.71,32.26]
[1759376059720,0.14216157,224.73,224.72,4.4499822]
[1759376060303,0.14216157,224.73,224.71,36.71004918]
[1759376060821,0.14216157,224.76,224.71,36.71004918]
[1759376061120,0.14216157,224.74,224.71,36.71004918]
[1759376061625,0.84216157,224.73,224.72,32.22]
[1759376061925,0.14216157,224.73,224.72,32.22]
[1759376062598,0.14216157,224.73,224.72,111.42]
[1759376064205,0.14216157,224.73,224.72,79.2]
[1759376064403,0.14216157,224.73,224.72,111.38]
[1759376064613,0.80216157,224.73,224.72,111.38]
[1759376064921,0.80216157,224.73,224.72,83.6499822]
[1759376065120,0.80216157,224.73,224.72,79.2]
[1759376066019,0.66,224.78,224.72,115.8099822]
[1759376066218,5.61955504,224.83,224.72,115.8099822]
[1759376066428,11.53647521,224.83,224.72,47.7349377]
[1759376066603,0.66,224.83,224.75,20.8]
[1759376066800,0.66,224.83,224.72,47.7349377]
[1759376066801,0.66,224.86,224.79,20.8]
[1759376067131,0.14216157,224.85,224.8,32.2]
[1759376067308,0.66,224.85,224.8,32.2]
[1759376068001,0.66,224.85,224.81,4.4482007]
[1759376068204,0.66,224.88,224.82,32.2]
[1759376070113,0.14216157,224.87,224.83,15.56731752]
[1759376070611,0.28432314,224.89,224.83,15.56731752]
[1759376070612,0.66,224.93,224.83,15.56731752]
[1759376070810,0.66,224.93,224.86,20.8]
[1759376071008,0.66,224.93,224.87,32.2]
[1759376071308,0.14216157,224.92,224.87,32.2]
[1759376071507,0.66,224.92,224.87,32.2]
[1759376071823,0.80216157,224.91,224.86,79.2]
[1759376072002,0.14216157,224.89,224.88,32.2]
[1759376072837,0.66,224.89,224.88,32.2]
[1759376073131,0.66,224.89,224.86,32.18]
[1759376073439,0.66,224.89,224.86,45.21741496]
[1759376074509,0.66,224.89,224.87,4.44701383]
[1759376074837,0.14216157,224.88,224.87,4.44701383]
[1759376075717,0.14216157,224.87,224.85,32.14]
[1759376075915,0.80216157,224.87,224.85,32.14]
[1759376076538,0.14216157,224.87,224.85,32.14]
[1759376076830,0.66,224.86,224.85,32.14]
[1759376077521,0.66,224.86,224.85,111.34]
[1759376078230,0.80216157,224.86,224.85,111.34]
[1759376078432,0.80216157,224.86,224.85,79.2]
[1759376078634,0.14216157,224.86,224.85,79.2]
[1759376079218,0.14216157,224.86,224.85,111.32]
[1759376079725,0.66,224.93,224.86,4.44721159]
[1759376079921,0.14216157,224.92,224.87,32.12]
[1759376080237,0.66,224.92,224.87,32.12]
[1759376080441,0.14216157,224.91,224.88,4.44681607]
[1759376080643,0.14216157,224.91,224.89,32.12]
[1759376082438,0.28432314,224.94,224.9,4.44642063]
[1759376082741,0.14216157,224.94,224.91,31.12]
[1759376082950,0.80216157,224.94,224.91,31.12]
[1759376083532,0.80216157,224.94,224.91,35.56617761]
[1759376086051,0.80216157,224.94,224.91,31.12]
[1759376086347,0.66,224.93,224.91,32.12]
[1759376087245,0.66,224.93,224.88,4.44681607]
[1759376087457,0.66,224.93,224.9,32.12]
[1759376088155,0.14216157,224.92,224.9,32.1]
[1759376089762,0.80216157,224.92,224.9,32.1]
[1759376089966,0.80216157,224.92,224.89,4.4465947]
[1759376090263,0.28432314,224.96,224.89,4.4465947]
[1759376090264,0.14216157,224.9,224.89,32.1]
[1759376090562,0.80216157,224.9,224.89,32.1]
[1759376090866,0.80216157,224.9,224.87,79.2]
[1759376091052,0.66,224.89,224.87,111.3]
[1759376091953,0.66,224.88,224.87,111.3]
[1759376092167,1.08648471,224.9,224.87,79.2]
[1759376092455,0.28432314,224.9,224.87,111.3]
[1759376092659,0.14216157,224.89,224.87,111.3]
[1759376092961,0.80216157,224.88,224.87,79.2]
[1759376093144,0.14216157,224.87,224.84,79.2]
[1759376093339,0.14216157,224.85,224.75,85.29873167]
[1759376093581,0.14216157,224.83,224.76,4.44901644]
[1759376093739,0.14216157,224.81,224.76,36.54901644]
[1759376093937,0.83216157,224.81,224.76,36.54901644]
[1759376094338,0.14216157,224.81,224.76,36.54901644]
[1759376094648,0.83216157,224.81,224.76,36.54901644]
[1759376095479,0.14216157,224.81,224.76,36.54901644]
[1759376095851,0.14216157,224.82,224.76,36.54901644]
[1759376097369,0.14216157,224.82,224.76,4.44901644]
[1759376097563,1.11648471,224.82,224.77,32.1]
[1759376097758,1.11648471,224.82,224.77,13.2415251]
[1759376097964,0.14216157,224.8,224.76,4.44919024]
[1759376098163,0.14216157,224.8,224.77,52.9]
[1759376098869,0.14216157,224.8,224.78,32.1]
[1759376099542,0.14216157,224.8,224.77,79.2]
[1759376099862,0.14216157,224.8,224.78,32.1]
[1759376100164,4.87389409,224.85,224.78,32.1]
[1759376100466,0.14216157,224.82,224.78,111.3]
[1759376100666,0.14216157,224.8,224.78,111.3]
[1759376100967,0.69,224.79,224.78,79.2]
[1759376101266,0.14216157,224.78,224.75,32.1]
[1759376101466,0.14216157,224.76,224.75,32.1]
[1759376101646,0.14216157,224.76,224.74,32.1]
[1759376102162,0.83216157,224.76,224.74,32.1]
[1759376102363,0.14216157,224.76,224.74,36.54957999]
[1759376102960,0.14216157,224.74,224.68,84.64613551]
[1759376103170,0.14216157,224.74,224.69,32.1]
[1759376104174,0.14216157,224.74,224.7,4.45037828]
[1759376104385,0.14216157,224.74,224.71,32.1]
[1759376104848,0.14216157,224.74,224.72,32.12]
[1759376105052,0.69,224.73,224.7,18.08992633]
[1759376105367,0.69,224.73,224.66,20.8]
[1759376105368,0.42648471,224.71,224.66,3.51338521]
[1759376105565,0.14216157,224.69,224.66,27.06]
[1759376105943,0.14216157,224.67,224.57,5.44613551]
[1759376106281,0.14216157,224.65,224.57,5.44613551]
[1759376106459,0.14216157,224.63,224.61,32.1]
[1759376106642,0.14216157,224.63,224.61,45.48587164]
[1759376107184,0.14216157,224.63,224.61,32.1]
[1759376107368,0.14216157,224.63,224.61,36.55212385]
[1759376108146,0.14216157,224.71,224.63,4.45176512]
[1759376108362,22.24108364,224.81,224.63,4.45176512]
[1759376108363,0.14216157,224.69,224.64,32.12]
[1759376108567,0.69,224.68,224.64,32.12]
[1759376108770,0.14216157,224.67,224.64,32.12]
[1759376109081,0.14216157,224.67,224.63,4.45176512]
[1759376109082,0.14216157,224.65,224.62,0.2]
[1759376109379,0.14216157,224.63,224.62,0.2]
[1759376110691,0.83216157,224.63,224.62,0.2]
[1759376112670,0.42648471,224.65,224.62,4.65177494]
[1759376112851,0.69,224.64,224.62,4.65177494]
[1759376113067,0.69,224.64,224.62,0.2]
[1759376113477,0.69,224.64,224.62,4.65194812]
[1759376113788,0.14216157,224.65,224.62,0.2]
[1759376113968,0.83216157,224.63,224.62,0.2]
[1759376115856,0.14216157,224.63,224.62,0.2]
[1759376117477,0.69,224.67,224.63,4.45176512]
[1759376118090,0.14216157,224.66,224.63,4.45176512]
[1759376118468,0.14216157,224.64,224.63,4.45176512]
[1759376118871,0.14216157,224.64,224.62,0.2]
[1759376119479,0.14216157,224.64,224.62,4.65187429]
[1759376120557,0.69,224.64,224.62,0.2]
[1759376120762,0.69,224.66,224.62,0.2]
[1759376120960,0.14216157,224.65,224.62,0.2]
[1759376121162,0.14216157,224.65,224.62,4.65190739]
[1759376122792,0.80216157,224.65,224.62,53.12]
[1759376122992,0.14216157,224.63,224.62,0.2]
[1759376123494,0.14216157,224.63,224.62,4.65196331]
[1759376124662,0.28432314,224.66,224.62,4.65196331]
[1759376125272,0.72,224.66,224.62,4.65196331]
[1759376125475,0.86216157,224.67,224.62,4.65196331]
[1759376125685,0.72,224.66,224.62,4.65196331]
[1759376126875,0.72,224.66,224.62,15.78187159]
[1759376127963,0.72,224.66,224.62,94.98187159]
[1759376128163,0.14216157,224.64,224.62,79.4]
[1759376128385,0.86216157,224.63,224.62,79.4]
[1759376128631,0.14216157,224.63,224.62,79.4]
[1759376130389,0.14216157,224.63,224.62,83.85196331]
[1759376131798,0.14216157,224.63,224.62,115.97196331]
[1759376133185,0.14216157,224.63,224.62,83.85196331]
[1759376133398,0.14216157,224.63,224.62,115.97196331]
[1759376133609,0.14216157,224.63,224.62,83.85196331]
[1759376133788,0.14216157,224.63,224.62,115.97196331]
[1759376135386,0.14216157,224.63,224.62,83.85196331]
[1759376135703,0.14216157,224.63,224.62,115.97196331]
[1759376137379,0.28432314,224.69,224.62,127.10187159]
[1759376137587,0.14216157,224.67,224.62,127.10187159]
[1759376137776,0.28432314,224.69,224.62,127.10187159]
[1759376137974,0.72,224.7,224.65,20.8]
[1759376138186,0.72,224.7,224.66,32.12]
[1759376139300,0.14216157,224.69,224.67,4.45097253]
[1759376139477,0.14216157,224.69,224.68,32.12]
[1759376139677,0.72,224.7,224.68,32.12]
[1759376140687,0.72,224.69,224.68,32.12]
[1759376141508,0.72,224.69,224.68,36.57077443]
[1759376142006,0.86216157,224.69,224.68,36.57077443]
[1759376143005,0.86216157,224.69,224.68,4.45077443]
[1759376143181,0.86216157,224.69,224.68,36.55077443]
[1759376145707,0.14216157,224.69,224.68,36.55077443]
[1759376146295,0.86216157,224.69,224.68,36.55077443]
[1759376146497,0.86216157,224.69,224.68,4.45077443]
[1759376146902,0.86216157,224.69,224.68,36.55077443]
[1759376147208,0.86216157,224.69,224.68,4.45077443]
[1759376147386,0.86216157,224.69,224.68,32.1]
[1759376148894,0.86216157,224.69,224.68,36.55077443]
[1759376149710,0.86216157,224.69,224.67,32.1]
[1759376149896,0.72,224.68,224.67,32.1]
[1759376150095,0.14216157,224.69,224.67,32.1]
[1759376150293,0.86216157,224.69,224.67,32.1]
[1759376150494,0.86216157,224.69,224.67,36.55084086]
[1759376151198,15.15061371,224.74,224.67,47.6782722]
[1759376151199,10.70093821,224.74,224.67,47.6782722]
[1759376151391,10.70093821,224.74,224.7,20.8]
[1759376151590,10.70093821,224.74,224.71,32.1]
[1759376152309,10.70093821,224.74,224.7,20.8]
[1759376152618,10.70093821,224.74,224.71,47.67563081]
[1759376153118,10.70093821,224.74,224.71,15.57563081]
[1759376153317,10.70093821,224.74,224.72,32.1]
[1759376153897,10.84309978,224.74,224.73,32.1]
[1759376154210,10.84309978,224.74,224.73,36.54978418]
[1759376155621,11.50309978,224.74,224.73,36.52978418]
[1759376155819,11.50309978,224.74,224.73,4.44978418]
[1759376156019,11.50309978,224.74,224.73,36.52978418]
[1759376156521,0.14216157,224.73,224.71,15.57563081]
[1759376156815,0.14216157,224.73,224.72,32.08]
[1759376157714,0.14216157,224.73,224.72,115.7299822]
[1759376157908,0.14216157,224.73,224.72,36.5299822]
[1759376159495,0.80216157,224.73,224.72,36.5299822]
[1759376159699,0.14216157,224.73,224.72,36.5299822]
[1759376160522,1.08648471,224.73,224.68,11.12677707]
[1759376160821,0.14216157,224.71,224.68,32.08]
[1759376161005,0.66,224.7,224.68,32.08]
[1759376161316,0.66,224.69,224.68,32.08]
[1759376161694,0.14216157,224.71,224.68,32.08]
[1759376161890,0.14216157,224.71,224.69,4.45057634]
[1759376162393,0.80216157,224.7,224.69,4.45057634]
[1759376162593,10.70093821,224.74,224.69,15.57701721]
[1759376162594,0.66,224.74,224.69,15.57701721]
[1759376162811,0.66,224.77,224.7,32.08]
[1759376163123,0.66,224.79,224.7,32.08]
[1759376163296,0.66,224.79,224.73,20.8]
[1759376163625,0.66,224.79,224.74,32.08]
[1759376163804,0.66,224.79,224.75,15.57285872]
[1759376164007,0.66,224.79,224.76,32.08]
[1759376164406,0.66,224.82,224.76,32.08]
[1759376164803,0.66,224.82,224.79,20.8]
[1759376165004,0.14216157,224.81,224.79,52.88]
[1759376165201,0.66,224.82,224.79,52.88]
[1759376165403,11.53647521,224.86,224.79,52.88]
[1759376165608,0.66,224.85,224.78,20.8]
[1759376165923,0.66,224.84,224.79,32.08]
[1759376166142,0.28432314,224.85,224.77,4.4488729]
[1759376166328,0.14216157,224.82,224.78,32.08]
[1759376166712,0.66,224.81,224.78,32.08]
[1759376166909,0.14216157,224.79,224.78,36.52865819]
[1759376167111,0.80216157,224.79,224.76,4.44919024]
[1759376167324,0.80216157,224.79,224.78,32.06]
[1759376167506,0.14216157,224.79,224.78,32.06]
[1759376168417,0.66,224.86,224.78,32.06]
[1759376168724,0.66,224.86,224.78,111.26]
[1759376168921,0.14216157,224.85,224.79,15.57008762]
[1759376169129,0.66,224.86,224.8,32.06]
[1759376169436,0.66,224.85,224.8,13.3758926]
[1759376169632,0.66,224.84,224.81,32.06]
[1759376170135,0.66,224.83,224.82,32.06]
[1759376170303,0.14216157,224.82,224.8,13.28246689]
[1759376170512,0.14216157,224.82,224.79,15.57008762]
[1759376170513,0.14216157,224.82,224.81,32.06]
[1759376171006,0.14216157,224.82,224.77,15.57147305]
[1759376171206,0.14216157,224.82,224.78,32.06]
[1759376171613,0.66,224.88,224.81,20.8]
[1759376171826,0.66,224.88,224.82,32.06]
[1759376172026,4.44626794,224.91,224.82,32.06]
[1759376172233,0.66,224.87,224.82,32.06]
[1759376172404,10.87647521,224.9,224.82,32.06]
[1759376172405,0.14216157,224.85,224.82,32.06]
[1759376172727,0.14216157,224.85,224.83,4.447805]
[1759376173658,0.14216157,224.85,224.84,20.8]
[1759376174330,0.14216157,224.85,224.84,52.86]
[1759376174711,0.14216157,224.85,224.83,4.447805]
[1759376174712,0.14216157,224.84,224.8,92.25650277]
[1759376174907,0.14216157,224.84,224.83,20.8]
[1759376175108,0.14216157,224.84,224.83,52.86]
[1759376175321,0.14216157,224.88,224.83,52.86]
[1759376175521,0.94432314,224.88,224.83,52.86]
[1759376175722,0.28432314,224.88,224.83,52.86]
[1759376176230,0.94432314,224.88,224.83,52.86]
[1759376176606,0.14216157,224.85,224.79,1.78082496]
[1759376176823,0.80216157,224.84,224.79,1.78082496]
[1759376177126,0.14216157,224.82,224.76,13.17269993]
[1759376177305,11.01863678,224.8,224.74,32.04]
[1759376177508,0.14216157,224.78,224.73,32.04]
[1759376177707,0.14216157,224.78,224.73,45.27854171]
[1759376177708,0.66,224.77,224.73,45.27854171]
[1759376177936,0.14216157,224.75,224.73,45.27854171]
[1759376178138,0.14216157,224.75,224.73,32.04]
[1759376178705,0.14216157,224.75,224.73,36.48970128]
[1759376179239,0.14216157,224.75,224.73,32.04]
[1759376179641,0.14216157,224.75,224.73,36.48975775]
[1759376179935,0.14216157,224.77,224.73,36.48975775]
[1759376180106,0.80216157,224.77,224.73,57.28975775]
[1759376180310,0.80216157,224.77,224.73,70.91012912]
[1759376181220,0.14216157,224.77,224.73,70.91012912]
[1759376181444,0.14216157,224.77,224.73,38.87012912]
[1759376181740,0.14216157,224.77,224.74,32.04]
[1759376181917,0.14216157,224.79,224.74,32.04]
[1759376183456,0.82216157,224.79,224.75,4.4493882]
[1759376183741,0.82216157,224.79,224.76,52.84]
[1759376183926,0.14216157,224.8,224.76,52.84]
[1759376184125,0.14216157,224.77,224.76,52.84]
[1759376185432,0.14216157,224.77,224.76,57.28919024]
[1759376186612,0.14216157,224.76,224.75,32.04]
[1759376186814,0.84216157,224.76,224.75,32.04]
[1759376187041,0.84216157,224.76,224.75,36.94]
[1759376187934,0.14216157,224.76,224.75,36.94]
[1759376188343,0.14216157,224.76,224.75,41.3893882]
[1759376188722,0.14216157,224.78,224.75,41.3893882]
[1759376191122,0.14216157,224.77,224.75,9.3493882]
[1759376191324,0.14216157,224.76,224.75,9.3493882]
[1759376191628,0.14216157,224.76,224.75,41.3893882]
[1759376193231,0.14216157,224.76,224.75,120.5893882]
[1759376194143,0.84216157,224.76,224.75,84.1]
[1759376194334,0.84216157,224.76,224.75,116.14]
[1759376194723,0.7,224.89,224.78,20.8]
[1759376194923,0.7,224.89,224.82,20.8]
[1759376195120,0.7,224.89,224.84,4.44760718]
[1759376195320,0.7,224.89,224.85,32.04]
[1759376197252,0.14216157,224.9,224.86,4.44721159]
[1759376197424,0.84216157,224.9,224.87,32.04]
[1759376198056,0.14216157,224.88,224.87,32.04]
[1759376199361,0.14216157,224.88,224.87,36.48701383]
[1759376201744,0.14216157,224.9,224.87,115.68701383]
[1759376202147,0.84216157,224.9,224.88,32.02]
[1759376202564,0.7,225.0,224.91,20.8]
[1759376202738,0.7,225.02,224.95,20.8]
[1759376202942,10.97830331,225.07,224.96,32.02]
[1759376202943,0.8,225.01,224.96,32.02]
[1759376203143,0.14216157,225.0,224.96,32.02]
[1759376203475,0.14216157,225.0,224.96,36.4652347]
[1759376203711,0.8,225.01,224.96,36.4652347]
[1759376203857,0.8,224.97,224.93,32.02]
[1759376204166,0.14216157,224.95,224.9,20.8]
[1759376204472,0.14216157,224.95,224.94,20.8]
[1759376204672,0.14216157,224.95,224.94,52.82]
[1759376206156,0.14216157,224.96,224.94,52.82]
[1759376206344,0.84216157,224.96,224.94,32.02]
[1759376206771,0.84216157,224.96,224.94,36.46561815]
[1759376207875,0.7,224.95,224.87,4.44701383]
[1759376208185,0.14216157,224.93,224.89,4.44647742]
[1759376208482,0.14216157,224.93,224.9,32.02]
[1759376208657,0.7,224.92,224.9,32.02]
[1759376208853,0.28432314,224.95,224.9,32.02]
[1759376209066,0.7,224.94,224.9,32.02]
[1759376209376,0.14216157,224.92,224.9,32.02]
[1759376209979,0.14216157,224.9,224.86,20.8]
[1759376210177,0.14216157,224.88,224.87,32.02]
[1759376210354,4.72877128,225.0,224.9,20.8]
[1759376210556,4.72877128,225.0,224.91,32.02]
[1759376210557,0.8,224.97,224.91,32.02]
[1759376211197,0.8,224.97,224.9,20.8]
[1759376211198,0.7,224.96,224.92,32.02]
[1759376211355,0.14216157,224.94,224.92,32.02]
[1759376211558,0.84216157,224.94,224.89,20.8]
[1759376211757,0.14216157,224.92,224.9,32.02]
[1759376211975,0.14216157,224.92,224.91,4.44622293]
[1759376214482,0.14216157,224.92,224.9,32.0]
[1759376214483,0.14216157,224.91,224.9,32.0]
[1759376214788,0.83216157,224.91,224.88,36.44681607]
[1759376215082,0.14216157,224.89,224.88,36.44681607]